Cogmind - Beta 13 @@@ ROGUE MODE // 2024.03.31 @ 23:57:00 Player: SnowyImp Result: Destroyed by S-10 Pest with Light Assault Rifle Performance ------------- Evolutions (0) 0 Regions Visited (1) 200 Robots Destroyed (7) 35 Value Destroyed (214) 214 Prototype IDs (2) 40 Alien Tech Used (0) 0 Bonus (0) 0 TOTAL SCORE: 489 Bonus ------- None Cogmind --------- Core Integrity 0/250 Matter 300/300 Energy 100/100 System Corruption 1% Temperature Cool (0) Movement Rolling (80) Location -10/Materials Parts ------- > --- POWER (1) -------- (None) > --- PROPULSION (2) --- Wheel > --- UTILITY (2) ------ Propulsion Shielding > --- WEAPON (2) ------- (None) > --- INVENTORY (5) ---- Light Ion Engine Heat Sink ECM Suite Peak State ------------ > --- POWER ------------ Light Ion Engine > --- PROPULSION ------- Wheel Wheel > --- UTILITY ---------- Heat Sink Propulsion Shielding > --- WEAPON ----------- Medium Laser Small Laser > --- INVENTORY -------- (None) [Rating: 7] Favorites ----------- Power Light Ion Engine Engine Light Ion Engine Propulsion Wheel Wheel Wheel Utility Heat Sink Device Heat Sink Protection Propulsion Shielding Weapon Small Laser Energy Gun Small Laser Special Melee Weapon Datajack Build | -11 -10 ------- Run | Yrd Mat Slots Evolved . | . . Power . | . . Propulsion . | . . Utility . | . . Weapon . | . . Parts Attached 9 | 6 3 Power 1 | 1 . Engine 1 | 1 . Core . | . . Reactor . | . . Propulsion 2 | 2 . Treads . | . . Leg . | . . Wheel 2 | 2 . Hover . | . . Flight . | . . Utility 3 | 1 2 Device 2 | 1 1 Storage . | . . Processor . | . . Hackware . | . . Protection 1 | . 1 Artifact . | . . Weapon 3 | 2 1 Energy Gun 2 | 2 . Energy Cannon . | . . Ballistic Gun . | . . Ballistic Cannon . | . . Launcher . | . . Special Weapon . | . . Impact Weapon . | . . Slashing Weapon . | . . Piercing Weapon . | . . Special Melee Weapon 1 | . 1 Unidentified Prototypes . | . . Parts Lost 6 | . 6 Power 1 | . 1 Propulsion 1 | . 1 Utility 1 | . 1 Weapon 3 | . 3 Highest Loss Streak 3 | . 3 To Critical Strikes . | . . Average Slot Usage (%) 81 | . 81 Engine 6 | . 6 Wheel 28 | . 28 Device 13 | . 13 Protection 10 | . 10 Energy Gun 19 | . 19 Special Melee Weapon 1 | . 1 Naked Turns . | . . Heaviest Build 8 | 7 8 Greatest Support 20 | 20 20 Greatest Overweight (x) . | . . Average Overweight (x) . | . . Largest Inventory Capacity 5 | 5 5 Average Capacity 5 | 5 5 Most Carried 3 | . 3 Average Carried . | . . Final Capacity 5 | 5 5 Final Carried 3 | . 3 Class Distribution -------------------- 100% | Mutant Dominant Class ---------------- Mutant | -10/Materials Resources | -11 -10 ----------- Run | Yrd Mat Matter Collected 260 | 250 10 Remotely . | . . Salvage Created 225 | 35 190 Parts 13 | 3 10 Haulers Intercepted . | . . Recyclers Shooed . | . . Parts Field Recycled . | . . Retrieved Matter . | . . Parts Self-Destructed . | . . Prevented . | . . Kills | -11 -10 ------- Run | Yrd Mat Combat Hostiles Destroyed 7 | 1 6 Melee 1 | . 1 Guns 6 | 1 5 Classes Destroyed 2 | 1 1 Swarmer 1 | . 1 Grunt 6 | 1 5 Best Kill Streak 3 | 1 3 Combat Bots Only 3 | 1 3 Max Kills in Single Turn 1 | 1 1 Gunslinging . | . . Exploded . | . . Melee 1 | . 1 Uniques/NPCs Destroyed . | . . Combat | -11 -10 -------- Run | Yrd Mat Hostile Shots Fired 85 | 3 82 Missed 26 | . 26 Damage Taken 582 | 31 551 Core 252 | . 252 Absorbed by Shields . | . . Redirected to Shielding 18 | . 18 Core Remaining (%) 100 | 100 . Volleys Fired 27 | 3 24 Largest 2 | 2 2 Hottest 90 | 90 90 Shots Fired 47 | 6 41 Gun 47 | 6 41 Cannon . | . . Launcher . | . . Special . | . . Kinetic . | . . Thermal 47 | 6 41 Explosive . | . . Electromagnetic . | . . Robot Hit Streak 10 | 2 10 Robot Miss Streak 3 | 2 3 Penetration Max . | . . Secondary Targets 1 | . 1 Max Gunslinging Chain 1 | . 1 Shots Hit Robots 36 | 3 33 Core Hits 18 | 2 16 Critical Kills . | . . Critical Parts Destroyed . | . . Critical Strikes 2 | . 2 Burn 2 | . 2 Melee Attacks 13 | . 13 Impact . | . . Slashing . | . . Piercing . | . . Sneak Attacks . | . . Combat Hostiles . | . . Follow-up Attacks . | . . Damage Inflicted 345 | 35 310 Guns 325 | 35 290 Cannons . | . . Explosions . | . . Melee . | . . Ramming 20 | . 20 Kinetic . | . . Thermal 325 | 35 290 Explosive . | . . Electromagnetic . | . . Impact . | . . Slashing . | . . Piercing . | . . Highest Corruption 1 | . 1 Average Corruption 1 | . 1 Corruption Purged . | . . Corruption Blocked . | . . Overload Shots . | . . Overflow Damage . | . . Projectiles . | . . Explosions . | . . Melee . | . . Knockbacks . | . . Impact . | . . Kinetic . | . . Secondary . | . . Self-Inflicted Damage 7 | . 7 Shots . | . . Rammed 9 | . 9 Targets Rammed 9 | . 9 Kicked . | . . Crushed . | . . Highest Temperature 108 | 108 18 Average Temperature 25 | 62 6 Received Heat Transfer 171 | 18 153 Siege Activations . | . . Robots Corrupted . | . . Combat Hostiles . | . . Parts Fried . | . . Impact Corruptions . | . . Robots Melted . | . . Combat Hostiles . | . . Parts Melted 2 | . 2 Heat Transferred 1016 | 99 917 Parts Sabotaged . | . . Parts Stolen . | . . Parts Stripped . | . . Power Chain Reactions . | . . Alert | -11 -10 ------- Run | Yrd Mat Peak Influence 273 | 20 273 Initial 13 | . 13 Average 110 | 2 126 Maximum Alert Level 1 | . 1 Low Security (%) 70 | 100 66 Level 1 29 | . 33 Level 2 . | . . Level 3 . | . . Level 4 . | . . Level 5 . | . . High Security . | . . Max Security . | . . Squads Dispatched 3 | . 3 Investigation 1 | . 1 Extermination . | . . Reinforcement 2 | . 2 Assault . | . . Garrison . | . . Intercept . | . . Searches Triggered . | . . Construction Impeded . | . . Haulers Reinforced . | . . Active Scanning Responses . | . . Cargo Convoy Interrupts . | . . Stealth | -11 -10 --------- Run | Yrd Mat Distress Signals 3 | . 3 Communications Jammed . | . . Distress Signals . | . . Times Spotted 22 | 1 21 Peak Tracking Total 6 | 1 6 Tactical Retreats 5 | . 5 Traps | -11 -10 ------- Run | Yrd Mat Traps Triggered . | . . Indirectly . | . . Trap Hack Attempts . | . . Triggered . | . . Disarmed . | . . Reprogrammed . | . . Reused . | . . Traps Extracted . | . . Installed . | . . Triggered . | . . Machines | -11 -10 ---------- Run | Yrd Mat Machines Disabled . | . . Max in Single Turn . | . . Machines Repaired . | . . Machines Dismantled . | . . Machines Sabotaged . | . . Overloaded Fab Kills . | . . Hacking | -11 -10 --------- Run | Yrd Mat Machines Accessed 2 | . 2 Terminals 1 | . 1 Fabricators . | . . Repair Stations . | . . Recycling Units 1 | . 1 Scanalyzers . | . . Garrison Access . | . . Total Hacks 8 | . 8 Successful 3 | . 3 Failed 5 | . 5 Catastrophic . | . . Database Lockouts . | . . Manual . | . . Terminals 4 | . 4 Fabricators . | . . Repair Stations . | . . Recycling Units 4 | . 4 Scanalyzers . | . . Garrison Access . | . . Terminal Hacks 1 | . 1 Prototype ID Bank 1 | . 1 Fabricator Hacks . | . . Repair Station Hacks . | . . Recycling Unit Hacks 2 | . 2 Process 1 | . 1 Report Inventory 1 | . 1 Scanalyzer . | . . Garrison Access Hacks . | . . Unauthorized Hacks . | . . Terminals . | . . Fabricators . | . . Repair Stations . | . . Recycling Units . | . . Scanalyzers . | . . Garrison Access . | . . Data Cores Recovered . | . . Used . | . . Hacking Detections 2 | . 2 Full Trace Events 1 | . 1 Feedback Events . | . . Feedback Blocked . | . . Robot Schematics Acquired . | . . Robots Built . | . . Authchips . | . . Time . | . . Total Robot Build Rating . | . . Part Schematics Acquired . | . . Parts Built . | . . Authchips . | . . Time . | . . Total Part Build Rating . | . . Parts Repaired . | . . Time . | . . Parts Recycled . | . . Recycled Matter . | . . Retrieved Matter . | . . Retrieved Components . | . . Parts Scanalyzed . | . . Part Schematics Acquired . | . . Parts Damaged . | . . Bothacking | -11 -10 ------------ Run | Yrd Mat Used RIF Installer . | . . Robots Hacked 3 | . 3 Non-combat 1 | . 1 Combat 2 | . 2 Robot Hacks Applied 6 | . 6 parse_system 6 | . 6 Relay Couplers Released . | . . Fabnet Peak Effective % . | . . Robots Rewired . | . . Allies Hacked . | . . Hacks Repelled . | . . Allies | -11 -10 -------- Run | Yrd Mat Total Allies . | . . Largest Group . | . . Highest-Rated Group . | . . Highest-Rated Ally . | . . Total Orders . | . . Ally Attacks . | . . Total Damage . | . . Kills . | . . Allies Corrupted . | . . Allies Melted . | . . Intel | -11 -10 ------- Run | Yrd Mat Robot Analysis Total . | . . Derelict Logs Recovered . | . . Drone Launches . | . . Drone Recoveries . | . . Exploration | -11 -10 ------------- Run | Yrd Mat Turns Passed 443 | 57 386 Spaces Moved 408 | 55 353 Core 15 | 15 . Treads . | . . Legs . | . . Wheels 393 | 40 353 Hover . | . . Flight . | . . Fastest Speed 50 | 50 80 Average Speed 78 | 71 80 Slowest Speed 80 | 80 80 Overloaded Moves . | . . Propulsion Burnouts . | . . Robots Hopped . | . . Cave-ins Triggered . | . . Exploration Rate (%) 26 | 5 47 Regions Visited 1 Branch Regions . Pre-discovered Areas . | . . Known Exits Taken . | . . Unknown Exits Taken 1 | 1 . Scrap Searched . | . . Spaces Dug . | . . Terrain Destroyed . | . . Melee . | . . Projectile . | . . AOE . | . . Terrain Rammed . | . . Walls Destroyed . | . . Machines Disabled . | . . Actions | -11 -10 --------- Run | Yrd Mat Total 470 | 63 407 Wait 2 | . 2 Move 407 | 54 353 Hop . | . . Pick Up 3 | . 3 Fast Attach 8 | 6 2 Attach . | . . Detach . | . . Swap 1 | . 1 Drop . | . . Fire 27 | 3 24 Melee 13 | . 13 Ram 9 | . 9 Kick . | . . Crush . | . . Escape Stasis . | . . Rewire . | . . Trap . | . . Miscellaneous . | . . Route ------- -11/Scrapyard -10/Materials History --------- Turn | Location | Event 2 | -11/Scrapyard | Met Revision 17 40 | -11/Scrapyard | Discovered new exit (range 8) 58 | -11/Scrapyard | Entered Materials 300 | -10/Materials | Build established: Mutant 405 | -10/Materials | Core integrity fell below 50% 434 | -10/Materials | Core integrity fell below 20% 444 | -10/Materials | Destroyed by S-10 Pest with Light Assault Rifle Last Messages --------------- >>parse_system Reading system data... Jacked S-10 Pest... >>parse_system Reading system data... Jacked S-10 Pest... Datajack destroyed. Slammed into S-10 Pest. Destabilizing: Core damaged (-7). Slammed into S-10 Pest. Destabilizing: System corrupted (+1). Slammed into S-10 Pest. Acquired Lgt. Ion Engine. Acquired ECM Suite. Heat Sink destroyed. S-10 Pest destroyed. Slammed into S-10 Pest. S-10 Pest destroyed. [Achievement: Fist Fight] Wheel destroyed. Map ----- +----------------------------------------------------+ | # # #????? ?# #??# """ """ #????? | | # # #???? ?# #??# """ """ #????? | | # # #??? ??# #??# #????? | | ######## =# #?? ??# #??######+######???? | | ???????# /% #?######## ####### ###### | | ???????# # ### | | ???????# # / | | ???##### # ### | | ???# # #?## ###########+### ###### | | ???# ######??# #????????????####+#####????? | | ???# #???????# #????????????# #?????? | | ???##### ##???????# #????????????# #?????? | | ???????# ##########+##???????????#= !!! #?????? | | ???????# # #????########% !!! #?????? | | ####???# # """ """ #????# + !! #?????? | | #???# # """ """ #????# """# % #?????? | | #???# # """ """ #????# R"# % #?????? | | "" #???# # #????# """# #?????? | | "" #???# + #????# # #?????? | | "" #???# # #????#= ##########?????? | | #???# ####################+#######???????????? | | ##+##### #?#"""#??# ###?????????? | | ###"T"#### % ????? | | ????? | | ##+####################+#####"T"## ?????? | | # #????????????# s@=######? #######?????? | | #""" #????????????# """%=#??????? #???????????? | | #""" #????????????# """%s#???????? #???????????? | | #""" #????????????# """s #?????????#???????????? | | # #????????????# #?????????????????????? | | # ] #????????????# ! #?????????????????????? | | ########????????????########?????????????????????? | | #????????????????????????????????????????????????? | | ?????????????????????????????????????????????????? | | ?????????????????????????????????????????????????? | | ?????????????????????????????????????????????????? | | ?????????????????????????????????????????????????? | | ?????????????????????????????????????????????????? | | ?????????????????????????????????????????????????? | | ?????????????????????????????????????????????????? | | ?????????????????????????????????????????????????? | | ?????????????????????????????????????????????????? | | ?????????????????????????????????????????????????? | | ?????????????????????????????????????????????????? | | ?????????????????????????????????????????????????? | | | | | | | | | | | +----------------------------------------------------+ Best States ------------- Heat Dissipation 35 Energy Generation 10 Energy Capacity 125 Matter Stores 300 Matter Capacity 300 Sight Range 16 Terrain Scan Density 10 Propulsion Shielding 33 Evasion (%) 50 Item Schematics ----------------- None Robot Schematics ------------------ None Fabricated ------------ Nothing Alien Tech Used ----------------- None Achievements -------------- Fist Fight Challenges ------------ None Game ------ Seed SwordPowerScrap Manual? 0 Play Time 00:12:05 Cumulative 0.6 hours Start 2024.03.31 @ 23:46:55 End 2024.03.31 @ 23:57:00 Sessions 1 Manual Loads 0 Difficulty Rogue Special Mode None Game No. 2 Rogue 2 Adventurer 0 Explorer 0 Win Type - Total 0 Types 0/0/0/0/0/0/0/0/0 Lore% 0 Gallery% 2 Achievement% 3 Wizard Run 0 Options --------- Layout 1 ASCII 0 Keyboard 0 Movement Numpad Keybinds 0 Fullscreen 1 Font 24/Crisp Map View 50x35 Zoom Use 0% Tactical HUD 0 Map Filters NONE Filters NONE Steam 1 RUN: 1bc6377a-a078-4fa3-8877-6f0e36e9ab64